Cogmind - Beta 13 @@@ ROGUE MODE // 2024.07.02 @ 10:48:48 Player: Jazzer Result: Destroyed by G-47 Trooper with Particle Gun Performance ------------- Evolutions (0) 0 Regions Visited (2) 400 Robots Destroyed (22) 110 Value Destroyed (579) 579 Prototype IDs (2) 40 Alien Tech Used (0) 0 Bonus (0) 0 TOTAL SCORE: 1129 Bonus ------- None Cogmind --------- Core Integrity 0/250 Matter 266/300 Energy 100/100 System Corruption 0% Temperature Cool (27) Movement Walking (190) Ox1 Location -10/Subcaves Parts ------- > --- POWER (1) -------- (None) > --- PROPULSION (2) --- Aluminum Leg > --- UTILITY (2) ------ Small Storage Unit Makeshift Light Armor Plating > --- WEAPON (2) ------- Barrage Gun Barrage Gun > --- INVENTORY (8) ---- Disposable Heat Sink Subdweller Beam Cannon Light Cannon Battle Cannon Flamer Makeshift Spear Shrapnel Trap Peak State ------------ > --- POWER ------------ Ion Engine > --- PROPULSION ------- Subdweller Monowheel > --- UTILITY ---------- Small Storage Unit Makeshift Light Armor Plating > --- WEAPON ----------- Barrage Gun Makeshift Spear > --- INVENTORY -------- Aluminum Leg Disposable Heat Sink Subdweller Beam Cannon Barrage Gun Light Cannon Battle Cannon Flamer Shrapnel Trap [Rating: 16] Favorites ----------- Power Ion Engine Engine Ion Engine Propulsion Aluminum Leg Treads Spiked Treads Leg Aluminum Leg Wheel Compact Wheel Utility Small Storage Unit Device Seismic Detector Storage Small Storage Unit Protection Light Armor Plating Weapon Medium Laser Energy Gun Medium Laser Energy Cannon Subdweller Beam Cannon Ballistic Gun Assault Rifle Launcher Grenade Launcher Special Weapon Flamer Slashing Weapon Makeshift Sword Piercing Weapon Makeshift Spear Build | -11 -10 -10 ------- Run | Yrd Mat Sub Slots Evolved . | . . . Power . | . . . Propulsion . | . . . Utility . | . . . Weapon . | . . . Parts Attached 26 | . 7 19 Power 2 | . 1 1 Engine 2 | . 1 1 Core . | . . . Reactor . | . . . Propulsion 6 | . . 6 Treads 1 | . . 1 Leg 2 | . . 2 Wheel 3 | . . 3 Hover . | . . . Flight . | . . . Utility 5 | . 2 3 Device 2 | . 1 1 Storage . | . . . Processor . | . . . Hackware . | . . . Protection 3 | . 1 2 Artifact . | . . . Weapon 13 | . 4 9 Energy Gun 3 | . 3 . Energy Cannon 2 | . . 2 Ballistic Gun 2 | . . 2 Ballistic Cannon . | . . . Launcher 3 | . 1 2 Special Weapon 1 | . . 1 Impact Weapon . | . . . Slashing Weapon 1 | . . 1 Piercing Weapon 1 | . . 1 Special Melee Weapon . | . . . Unidentified Prototypes . | . . . Parts Lost 12 | . . 12 Power 2 | . . 2 Propulsion 5 | . . 5 Utility 2 | . . 2 Weapon 3 | . . 3 Highest Loss Streak 2 | . . 2 To Critical Strikes . | . . . Average Slot Usage (%) 92 | . 98 89 Engine 13 | . 14 13 Treads 1 | . . 2 Leg 17 | . 28 11 Wheel 5 | . . 8 Device 5 | . 2 6 Storage 14 | . 14 14 Protection 5 | . 9 4 Energy Gun 6 | . 14 3 Energy Cannon 3 | . . 4 Ballistic Gun 8 | . 14 5 Launcher 2 | . . 3 Slashing Weapon 3 | . . 5 Piercing Weapon 1 | . . 2 Naked Turns . | . . . Heaviest Build 23 | 11 17 23 Greatest Support 32 | 20 20 32 Greatest Overweight (x) 4 | . . 4 Average Overweight (x) . | . . . Largest Inventory Capacity 8 | . 8 8 Average Capacity 8 | . 8 8 Most Carried 8 | . 8 8 Average Carried 7 | . 7 7 Final Capacity 8 | 8 8 8 Final Carried 8 | 6 8 7 Class Distribution -------------------- 100% | Mutant Dominant Class ---------------- Mutant | -10/Materials Mutant | -10/Subcaves Resources | -11 -10 -10 ----------- Run | Yrd Mat Sub Matter Collected 688 | 193 110 385 Remotely . | . . . Salvage Created 564 | . 154 410 Parts 33 | . 17 16 Haulers Intercepted . | . . . Recyclers Shooed 1 | . 1 . Parts Field Recycled . | . . . Retrieved Matter . | . . . Parts Self-Destructed 4 | . . 4 Prevented . | . . . Kills | -11 -10 -10 ------- Run | Yrd Mat Sub Combat Hostiles Destroyed 21 | . 9 12 Melee 1 | . . 1 Guns 11 | . 9 2 Cannons 3 | . . 3 AOE 4 | . . 4 Classes Destroyed 5 | . 2 3 Watcher 1 | . 1 . Swarmer 9 | . 9 . Grunt 2 | . . 2 Sentry 1 | . . 1 Subdweller 9 | . . 9 Best Kill Streak 3 | . 3 2 Combat Bots Only 3 | . 3 2 Max Kills in Single Turn 2 | . 1 2 Gunslinging . | . . . Exploded 2 | . . 2 Melee 1 | . . 1 Uniques/NPCs Destroyed . | . . . Combat | -11 -10 -10 -------- Run | Yrd Mat Sub Hostile Shots Fired 95 | . 41 54 Missed 25 | . 11 14 Damage Taken 1407 | . 248 1159 Core 259 | . 43 216 Absorbed by Shields . | . . . Core Remaining (%) 100 | 100 . . Volleys Fired 79 | . 23 56 Largest 2 | . 2 2 Hottest 128 | . 70 128 Shots Fired 110 | . 45 65 Gun 60 | . 44 16 Cannon 28 | . . 28 Launcher 18 | . 1 17 Special 4 | . . 4 Kinetic 36 | . 22 14 Thermal 56 | . 22 34 Explosive 18 | . 1 17 Electromagnetic . | . . . Robot Hit Streak 13 | . 4 13 Robot Miss Streak 3 | . 3 2 Penetration Max . | . . . Secondary Targets 1 | . 1 . Max Gunslinging Chain 1 | . 1 . Shots Hit Robots 72 | . 24 48 Core Hits 25 | . 10 15 Critical Kills 2 | . . 2 Critical Parts Destroyed . | . . . Critical Strikes 4 | . 1 3 Burn 2 | . 1 1 Meltdown 2 | . . 2 Melee Attacks 31 | . . 31 Impact . | . . . Slashing 5 | . . 5 Piercing 26 | . . 26 Sneak Attacks . | . . . Combat Hostiles . | . . . Follow-up Attacks . | . . . Damage Inflicted 1867 | . 359 1508 Guns 557 | . 319 238 Cannons 530 | . . 530 Explosions 651 | . 40 611 Melee 105 | . . 105 Ramming . | . . . Kinetic 386 | . 172 214 Thermal 725 | . 147 578 Explosive 651 | . 40 611 Electromagnetic . | . . . Impact . | . . . Slashing 105 | . . 105 Piercing . | . . . Highest Corruption . | . . . Average Corruption . | . . . Corruption Purged . | . . . Corruption Blocked . | . . . Overload Shots . | . . . Overflow Damage . | . . . Projectiles . | . . . Explosions . | . . . Melee . | . . . Knockbacks . | . . . Impact . | . . . Kinetic . | . . . Secondary . | . . . Self-Inflicted Damage 32 | . . 32 Shots 1 | . . 1 Rammed . | . . . Targets Rammed . | . . . Kicked . | . . . Crushed . | . . . Highest Temperature 254 | . 198 254 Average Temperature 55 | . 65 40 Received Heat Transfer 555 | . . 555 Siege Activations . | . . . Robots Corrupted . | . . . Combat Hostiles . | . . . Parts Fried . | . . . Impact Corruptions . | . . . Robots Melted 2 | . . 2 Combat Hostiles 2 | . . 2 Parts Melted 5 | . 2 3 Heat Transferred 1529 | . 518 1011 Parts Sabotaged . | . . . Parts Stolen . | . . . Parts Stripped . | . . . Power Chain Reactions . | . . . Alert | -11 -10 -10 ------- Run | Yrd Mat Sub Peak Influence 198 | . 198 . Initial . | . . . Average 67 | . 67 . Maximum Alert Level . | . . . Low Security (%) 100 | . 100 . Level 1 . | . . . Level 2 . | . . . Level 3 . | . . . Level 4 . | . . . Level 5 . | . . . High Security . | . . . Max Security . | . . . Squads Dispatched . | . . . Investigation . | . . . Extermination . | . . . Reinforcement . | . . . Assault . | . . . Garrison . | . . . Intercept . | . . . Searches Triggered . | . . . Construction Impeded . | . . . Haulers Reinforced . | . . . Active Scanning Responses . | . . . Cargo Convoy Interrupts . | . . . Stealth | -11 -10 -10 --------- Run | Yrd Mat Sub Distress Signals . | . . . Communications Jammed . | . . . Distress Signals . | . . . Times Spotted 27 | . 15 12 Peak Tracking Total 4 | . 4 2 Tactical Retreats 1 | . 1 . Traps | -11 -10 -10 ------- Run | Yrd Mat Sub Traps Triggered 3 | . . 3 Indirectly . | . . . Trap Hack Attempts . | . . . Triggered . | . . . Disarmed . | . . . Reprogrammed . | . . . Reused 1 | . . 1 Traps Extracted . | . . . Installed 1 | . . 1 Triggered 1 | . . 1 Most Traps Carried 1 | . . 1 Machines | -11 -10 -10 ---------- Run | Yrd Mat Sub Machines Disabled . | . . . Max in Single Turn . | . . . Machines Repaired . | . . . Machines Dismantled . | . . . Machines Sabotaged . | . . . Overloaded Fab Kills . | . . . Hacking | -11 -10 -10 --------- Run | Yrd Mat Sub Machines Accessed 9 | . 8 1 Terminals 8 | . 8 . Fabricators . | . . . Repair Stations . | . . . Recycling Units . | . . . Scanalyzers . | . . . Garrison Access . | . . . Total Hacks 27 | . 24 3 Successful 16 | . 13 3 Failed 10 | . 10 . Catastrophic 1 | . 1 . Database Lockouts 1 | . 1 . Manual 15 | . 15 . Terminals 24 | . 24 . Fabricators . | . . . Repair Stations . | . . . Recycling Units . | . . . Scanalyzers . | . . . Garrison Access . | . . . Terminal Hacks 11 | . 8 3 Record 3 | . . 3 Robot Analysis 1 | . 1 . Prototype ID Bank 1 | . 1 . Terminal Index 1 | . 1 . Locate Traps 3 | . 3 . Hauler Manifests 1 | . 1 . Zone Layout 1 | . 1 . Fabricator Hacks . | . . . Repair Station Hacks . | . . . Recycling Unit Hacks . | . . . Scanalyzer . | . . . Garrison Access Hacks . | . . . Unauthorized Hacks 5 | . 5 . Terminals 5 | . 5 . Botnet 3 | . 3 . Disrupt 1 | . 1 . Operators 1 | . 1 . Fabricators . | . . . Repair Stations . | . . . Recycling Units . | . . . Scanalyzers . | . . . Garrison Access . | . . . Data Cores Recovered . | . . . Used . | . . . Hacking Detections 8 | . 8 . Full Trace Events . | . . . Feedback Events . | . . . Feedback Blocked . | . . . Robot Schematics Acquired . | . . . Robots Built . | . . . Authchips . | . . . Time . | . . . Total Robot Build Rating . | . . . Part Schematics Acquired . | . . . Parts Built . | . . . Authchips . | . . . Time . | . . . Total Part Build Rating . | . . . Parts Repaired . | . . . Time . | . . . Parts Recycled . | . . . Recycled Matter . | . . . Retrieved Matter . | . . . Retrieved Components . | . . . Parts Scanalyzed . | . . . Part Schematics Acquired . | . . . Parts Damaged . | . . . Bothacking | -11 -10 -10 ------------ Run | Yrd Mat Sub Used RIF Installer . | . . . Robots Hacked . | . . . Non-combat . | . . . Combat . | . . . Robot Hacks Applied . | . . . Relay Couplers Released . | . . . Fabnet Peak Effective % . | . . . Robots Rewired . | . . . Allies Hacked . | . . . Hacks Repelled . | . . . Allies | -11 -10 -10 -------- Run | Yrd Mat Sub Total Allies . | . . . Largest Group . | . . . Highest-Rated Group . | . . . Highest-Rated Ally . | . . . Total Orders . | . . . Ally Attacks . | . . . Total Damage . | . . . Kills . | . . . Allies Corrupted . | . . . Allies Melted . | . . . Intel | -11 -10 -10 ------- Run | Yrd Mat Sub Robot Analysis Total 1 | . 1 . Derelict Logs Recovered 1 | . . 1 Drone Launches . | . . . Drone Recoveries . | . . . Exploration | -11 -10 -10 ------------- Run | Yrd Mat Sub Turns Passed 2854 | . 978 1876 Spaces Moved 1954 | 1 694 1259 Core 2 | . . 2 Treads 95 | . . 95 Legs 1265 | 1 694 570 Wheels 592 | . . 592 Hover . | . . . Flight . | . . . Fastest Speed 100 | 120 120 100 Average Speed 123 | 120 120 124 Slowest Speed 260 | 120 120 260 Overloaded Moves . | . . . Propulsion Burnouts . | . . . Robots Hopped . | . . . Cave-ins Triggered . | . . . Exploration Rate (%) 60 | 2 99 80 Regions Visited 2 Branch Regions 1 Pre-discovered Areas 1 | . . 1 Known Exits Taken . | . . . Unknown Exits Taken 2 | 1 1 . Scrap Searched 7 | . . 7 Spaces Dug 36 | . . 36 Terrain Destroyed 116 | . 9 107 Melee 15 | . . 15 Projectile 2 | . . 2 AOE 99 | . 9 90 Terrain Rammed . | . . . Walls Destroyed . | . . . Machines Disabled . | . . . Actions | -11 -10 -10 --------- Run | Yrd Mat Sub Total 2253 | . 793 1460 Wait 137 | . 62 75 Move 1952 | . 693 1259 Hop . | . . . Pick Up 15 | . 4 11 Fast Attach 6 | . 1 5 Attach 8 | . . 8 Detach 1 | . . 1 Swap 12 | . 6 6 Drop 11 | . 4 7 Fire 79 | . 23 56 Melee 31 | . . 31 Ram . | . . . Kick . | . . . Crush . | . . . Escape Stasis . | . . . Rewire . | . . . Trap 1 | . . 1 Miscellaneous . | . . . Route ------- -11/Scrapyard -10/Materials (discovered 5 exits: [*Mat x3] / [*Min] / *Sub) -10/Subcaves (discovered 2 exits: [*Mat x2]) History --------- Turn | Location | Event 1 | -11/Scrapyard | Discovered new exit (range 0) 1 | -11/Scrapyard | Entered Materials 100 | -10/Materials | Discovered new exit (range 12) 102 | -10/Materials | Central database locked down 142 | -10/Materials | Discovered new exit (range 16) 312 | -10/Materials | Build established: Mutant 332 | -10/Materials | Discovered new exit (range 16) 835 | -10/Materials | Discovered new exit (range 13) 975 | -10/Materials | Discovered new exit (range 4) 979 | -10/Materials | Entered Subcaves 983 | -10/Subcaves | Discovered new exit (range 10) 1289 | -10/Subcaves | Learned 2 Materials zone layouts 1417 | -10/Subcaves | Shifting Twisted Machinery released Battle Rifle 1423 | -10/Subcaves | Shifting Twisted Machinery released Barrage Gun 1826 | -10/Subcaves | Shifting Twisted Machinery released Piercing Trap 1837 | -10/Subcaves | Shifting Twisted Machinery released Battle Cannon 2007 | -10/Subcaves | Discovered new exit (range 6) 2148 | -10/Subcaves | Core integrity fell below 50% 2321 | -10/Subcaves | Core integrity fell below 20% 2644 | -10/Subcaves | A swath of the cavern ceiling suddenly collapsed 2753 | -10/Subcaves | Visited Clippyterm 2756 | -10/Subcaves | Learned location of Section 7 (-2) 2855 | -10/Subcaves | Destroyed by G-47 Trooper with Particle Gun Last Messages --------------- 02756_ Current location identified: Subcaves >>Intel! "World Domination" It looks like you're trying to take over the world, would you like help? World map updated: -2/Section 7. >>Record! "Early Bird" It looks like you're searching for a worm, right? Don't bother with early when it comes to the Lifeworm, it's never early, but by some measures it might be just in time... >>Record! "Hexidium" It looks like you're searching for the Unchained HQ. I could tell you where it is but then I'd have to kill you. 02811_ G-34 Mercenary destroyed. 02813_ Acquired 36 matter. 02816_ Acquired Aluminum Leg. 02824_ Sub. Monowheel shoots sparks and powers down. 02825_ Dropped Broken Sub. Monowheel. 02839_ Aluminum Leg destroyed. 02849_ Ion Engine destroyed. 02851_ Subatomizers dissect the Broken Sub. Monowheel. 02855_ Critical hit (Burn: +37). Map ----- +----------------------------------------------------+ | ????????????????????????????????????????????? | | ????????????????????????????????????????????? | | ????????????????????????????????????????????? | | ????????????????????????????????????????????? | | ????????????????????????????????????????????? | | ????????????????????????????????????????????? | | ????????????????????????????????????????????? | | ????????????????????????????????????????????? | | ????????????????????????????????????????????? | | ????????????????????????????????????????????? | | ????????????????????????????????????????????? | | ????????????????????????????????????????????? | | ?????????????????????????##?????????????????? | | ???????????????????????? ##### ????????????? | | ???????????????????????? ????????????? | | ???????????????????????? ???????????? | | ??????????????????????? ???????????? | | ??????????????????????? ????? ?? ? | | ??????????????????????# ???? ?? ? | | ???????????????###???# ???# ?? ? | | ??????????????## ### ????# ## ? | | ??????????????# #?????# ? | | ??????????????# ???????# #? | | ??????????????# ?????????# #? | | ??????????????# g#??????????# ## | | ??????????????## @#?????????? "" | | ???????????????### #???????????? "" | | ?????????????????## #?????????????# "? | | ?????????????????# #?????????????# ?? | | ?????????????????# #??????????????# #?? | | ?????????????????# #???????????#???# ### | | ?????????????????## #??????????"#??## # | | ?????????????????## #??????????"#?## | | ?????????????????# #???#####?""#?# | | ?????????????????# ##?##""#"#"#?## # | | ?????????????????# = ##### ##"#####" ## | | ????????????????## ###""#"# "" "# ### | | ????????????????# #"#""####"#"# ##### | | ?????????#####?## ###"# "##########??# | | ?????????#"""### ###### #?####??????# | | ?????????#"" ## ##?#""#???????????# | | ?????????#"X # ### ###"##???????????# | | ?????????#"" ## ####?# "# ####??????????# | | ?????????#"""## # ### "" #??????????## | | ?????????######## ######???????????? | | ????????????????# #????????????????? | | ????????????????# ##????????????????? | | ????????????????# ###?????????????????? | | ???????????????## ####????????????????? | | ??????????????## ##???????????????? | +----------------------------------------------------+ Best States ------------- Heat Dissipation 25 Coolant Potential 50 Energy Generation 10 Energy Capacity 250 Matter Stores 300 Matter Capacity 300 Sight Range 16 Terrain Scan Density 10 Armor Coverage 150 Evasion (%) 55 Recoil Reduction 1 Item Schematics ----------------- None Robot Schematics ------------------ None Fabricated ------------ Nothing Alien Tech Used ----------------- None Achievements -------------- None Challenges ------------ None Game ------ Seed CannonRainbowWheel Manual? 0 Play Time 00:30:56 Cumulative 292.2 hours Start 2024.07.02 @ 10:19:20 End 2024.07.02 @ 10:48:48 Sessions 1 Manual Loads 0 Difficulty Rogue Special Mode None Game No. 168 Rogue 168 Adventurer 0 Explorer 0 Win Type - Total 2 Types 2/0/0/0/0/0/0/0/0 Lore% 50 Gallery% 61 Achievement% 34 Wizard Run 0 Options --------- Layout 0 ASCII 0 Keyboard 1 Movement Numpad Keybinds 0 Fullscreen 2 Font 18/SmallcapsGlow Map View 76x50 Zoom Use 0% Tactical HUD 1 Map Filters NONE Filters NONE Steam 1 RUN: d421a11f-39a6-41a7-8762-82b5cd1306b6